bitfinex-derivatives/quotes_SOLF0:USTF0_20250907
["timestamp","ask_amount","ask_price","bid_price","bid_amount"]
[1757234297756,13.45620889,203.74,203.67,8.78516447]
[1757234297957,13.45620889,203.74,203.68,8.78516447]
[1757234298153,7.96,203.73,203.69,15.56516447]
[1757234298353,5.49620889,203.74,203.7,8.78492304]
[1757234298553,7.96,203.73,203.71,4.29192875]
[1757234298757,7.96,203.73,203.69,6.78]
[1757234299066,7.96,203.73,203.7,8.78469229]
[1757234299268,7.96,203.73,203.69,6.78]
[1757234299462,7.96,203.73,203.7,8.78424852]
[1757234299762,8.01,203.73,203.69,6.78]
[1757234299965,8.01,203.73,203.7,8.78424856]
[1757234300266,8.01,203.73,203.69,6.78]
[1757234300566,8.01,203.73,203.7,4.29127704]
[1757234300772,8.01,203.73,203.7,6.79]
[1757234301066,8.01,203.73,203.7,3.72034693]
[1757234302068,8.01,203.73,203.71,4.29108843]
[1757234302265,5.49620889,203.74,203.7,3.72034693]
[1757234302461,5.49620889,203.75,203.71,4.29090678]
[1757234302662,8.01,203.74,203.7,3.72034693]
[1757234302868,8.01,203.74,203.71,4.29091586]
[1757234303169,5.49620889,203.75,203.7,3.72034693]
[1757234303463,5.49620889,203.75,203.71,4.29073538]
[1757234303666,8.01,203.74,203.7,3.72034693]
[1757234303868,8.01,203.74,203.71,4.29073538]
[1757234304069,8.01,203.74,203.7,3.72034693]
[1757234304265,5.49620889,203.75,203.71,4.29073538]
[1757234304571,5.49620889,203.75,203.7,3.72034693]
[1757234304772,5.49620889,203.75,203.71,4.29059083]
[1757234304971,8.01,203.74,203.7,3.72034693]
[1757234305170,8.01,203.74,203.71,4.29059083]
[1757234305371,8.01,203.74,203.7,3.72034693]
[1757234305672,8.01,203.74,203.71,4.29061513]
[1757234305867,8.01,203.74,203.7,3.72034693]
[1757234306069,5.49620889,203.75,203.71,4.29083413]
[1757234306362,5.49620889,203.75,203.7,3.72034693]
[1757234306563,5.49620889,203.75,203.71,4.29070013]
[1757234306872,5.49620889,203.75,203.7,3.72034693]
[1757234307067,5.49620889,203.75,203.71,4.29070013]
[1757234307273,8.01,203.74,203.67,3.72]
[1757234307476,8.01,203.74,203.68,8.77058663]
[1757234307674,8.01,203.74,203.7,3.72]
[1757234307875,8.01,203.74,203.71,8.01022738]
[1757234308174,8.01,203.74,203.72,8.01022738]
[1757234308374,8.01,203.74,203.72,3.72]
[1757234308772,13.50620889,203.75,203.66,3.72]
[1757234308973,13.50620889,203.75,203.68,3.72]
[1757234309173,13.50620889,203.75,203.69,8.77098688]
[1757234309376,8.01,203.74,203.7,12.49098688]
[1757234309579,8.01,203.74,203.71,4.29042317]
[1757234309773,5.49620889,203.75,203.7,3.72]
[1757234310079,5.49620889,203.75,203.71,4.29057639]
[1757234310373,8.01,203.74,203.71,3.72]
[1757234312376,5.49620889,203.75,203.73,3.72]
[1757234312679,13.50620889,203.77,203.74,8.00908019]
[1757234312874,8.01,203.76,203.75,4.82948192]
[1757234315281,5.49620889,203.77,203.75,4.82948192]
[1757234315484,130.2213714,203.81,203.76,8.52948192]
[1757234315485,13.50620889,203.79,203.76,8.52948192]
[1757234315682,8.01,203.78,203.77,4.82948192]
[1757234320583,5.49620889,203.8,203.77,4.82335996]
[1757234320887,8.01,203.79,203.73,3.7]
[1757234321083,5.49620889,203.79,203.74,9.11498012]
[1757234321283,5.49620889,203.79,203.75,9.11498012]
[1757234321482,5.49620889,203.79,203.76,4.82335996]
[1757234321684,8.01,203.78,203.77,4.82335996]
[1757234322084,8.01,203.78,203.74,3.7]
[1757234322281,5.49620889,203.79,203.74,3.7]
[1757234322477,13.50620889,203.79,203.73,3.7]
[1757234322683,13.50620889,203.77,203.74,8.52323096]
[1757234322984,13.50620889,203.77,203.74,3.7]
[1757234323976,5.49620889,203.78,203.76,3.7]
[1757234324180,5.49620889,203.83,203.78,3.7]
[1757234324385,5.49620889,203.86,203.82,2.38647773]
[1757234324684,5.49620889,203.86,203.83,3.7]
[1757234324882,5.49620889,203.86,203.79,3.7]
[1757234325080,5.49620889,203.86,203.81,6.08647773]
[1757234325284,13.50620889,203.87,203.82,4.81511356]
[1757234325479,13.50620889,203.87,203.84,1.52506556]
[1757234325686,13.50620889,203.87,203.84,5.22506556]
[1757234326990,8.01,203.86,203.84,1.52506556]
[1757234327587,8.01,203.86,203.83,1.52506556]
[1757234327889,8.01,203.85,203.83,1.52506556]
[1757234328892,5.49620889,203.86,203.81,1.52506556]
[1757234329087,8.01,203.85,203.81,1.52506556]
[1757234329288,7.59,203.86,203.81,1.52506556]
[1757234329487,5.49620889,203.87,203.81,1.52506556]
[1757234329688,7.59,203.86,203.81,1.52506556]
[1757234330290,5.49620889,203.87,203.81,1.52506556]
[1757234331694,7.59,203.86,203.81,1.52506556]
[1757234331989,5.49620889,203.87,203.81,1.52506556]
[1757234332294,7.59,203.86,203.81,1.52506556]
[1757234332490,5.49620889,203.88,203.81,1.52506556]
[1757234332692,7.59,203.87,203.81,1.52506556]
[1757234333794,5.49620889,203.88,203.83,5.23506556]
[1757234333989,7.59,203.87,203.83,5.23506556]
[1757234334190,5.49620889,203.89,203.83,5.23506556]
[1757234334391,7.59,203.88,203.83,5.23506556]
[1757234334799,5.49620889,203.89,203.83,5.23506556]
[1757234334991,7.59,203.88,203.83,5.23506556]
[1757234335296,5.49620889,203.89,203.83,5.23506556]
[1757234335686,7.59,203.88,203.83,5.23506556]
[1757234335886,7.59,203.88,203.83,1.52506556]
[1757234336998,5.49620889,203.89,203.83,1.52506556]
[1757234337200,7.59,203.88,203.83,1.52506556]
[1757234337397,7.02127445,203.9,203.83,5.23506556]
[1757234337596,7.59,203.89,203.83,5.23506556]
[1757234342109,7.59,203.89,203.83,3.71]
[1757234342306,7.59,203.89,203.83,5.23506556]
[1757234351014,9.11506556,203.89,203.83,5.23506556]
[1757234352513,14.61127445,203.89,203.83,5.23506556]
[1757234354215,7.59,203.87,203.84,3.71]
[1757234354412,5.49620889,203.88,203.84,3.71]
[1757234355011,7.59,203.87,203.84,3.71]
[1757234355515,5.49620889,203.88,203.84,3.71]
[1757234355907,7.59,203.87,203.84,3.71]
[1757234356111,5.49620889,203.88,203.84,3.71]
[1757234356315,7.59,203.87,203.84,3.71]
[1757234356511,7.59,203.87,203.81,8.1249]
[1757234356814,5.49620889,203.88,203.82,1.52506556]
[1757234357018,7.59,203.87,203.82,5.23506556]
[1757234357213,13.08620889,203.87,203.82,5.23506556]
[1757234357517,7.59,203.86,203.83,3.71]
[1757234362219,13.08620889,203.86,203.83,3.71]
[1757234362410,5.49620889,203.86,203.83,3.71]
[1757234362616,13.58620889,203.85,203.83,3.71]
[1757234364119,5.49620889,203.85,203.84,3.71]
[1757234366222,8.27782184,203.87,203.84,3.71]
[1757234366422,8.09,203.86,203.84,3.71]
[1757234367224,16.36782184,203.86,203.84,3.71]
[1757234367425,8.09,203.85,203.82,5.23506556]
[1757234367630,5.51195976,203.84,203.83,4.8476207]
[1757234368327,16.36782184,203.85,203.83,4.8476207]
[1757234368526,16.36782184,203.85,203.84,4.8476207]
[1757234371521,16.36782184,203.85,203.8,1.52506556]
[1757234371522,8.28012734,203.85,203.8,1.52506556]
[1757234371723,5.52008489,203.82,203.81,12.86041926]
[1757234371924,5.52008489,203.82,203.81,14.38548482]
[1757234372728,13.61008489,203.84,203.81,14.38548482]
[1757234372924,8.09,203.83,203.82,9.15041926]
[1757234376235,5.52008489,203.84,203.82,12.86041926]
[1757234376433,13.61008489,203.84,203.83,9.15041926]
[1757234384742,8.09,203.84,203.83,9.15041926]
[1757234384941,8.09,203.84,203.8,3.71]
[1757234385138,8.09,203.82,203.81,8.91636071]
[1757234387946,8.09,203.82,203.81,8.91557961]
[1757234390438,5.5208273,203.86,203.83,3.71]
[1757234390639,5.5208273,203.87,203.84,128.87557961]
[1757234390945,5.5208273,203.87,203.86,3.71]
[1757234391144,5.5208273,203.88,203.87,3.71]
[1757234391339,5.5208273,203.88,203.87,8.01563899]
[1757234391542,5.5208273,203.89,203.87,8.91005025]
[1757234391737,15.70012734,203.91,203.88,128.84945507]
[1757234391738,5.5208273,203.91,203.88,128.84945507]
[1757234391941,5.5208273,203.91,203.9,3.71]
[1757234392142,5.5208273,203.92,203.9,12.61821529]
[1757234392349,5.5208273,203.93,203.91,12.72487863]
[1757234392537,12.9408273,203.94,203.92,9.01487863]
[1757234392741,7.42,203.94,203.93,9.01487863]
[1757234393344,7.42,203.94,203.93,4.30563899]
[1757234394344,7.42,203.94,203.91,3.71]
[1757234394550,7.42,203.94,203.92,9.10089674]
[1757234394848,7.42,203.94,203.91,3.71]
[1757234395040,7.42,203.94,203.92,9.10089674]
[1757234395244,7.42,203.94,203.91,3.71]
[1757234395540,7.42,203.94,203.92,4.3971631]
[1757234395744,7.42,203.94,203.91,3.71]
[1757234395939,7.42,203.94,203.92,4.3971631]
[1757234396144,7.42,203.97,203.93,4.39611213]
[1757234396346,7.42,203.97,203.92,119.92]
[1757234396540,7.42,203.98,203.93,4.39408931]
[1757234396738,5.5208273,203.99,203.92,119.92]
[1757234396944,7.42,203.98,203.93,4.39408931]
[1757234397143,5.5208273,203.99,203.92,119.92]
[1757234397547,7.42,203.98,203.92,119.92]
[1757234397846,5.5208273,203.99,203.92,119.92]
[1757234398646,7.42,203.98,203.92,123.63]
[1757234399246,7.42,203.98,203.93,3.71]
[1757234399553,7.42,204.0,203.93,3.71]
[1757234400248,7.42,204.0,203.9,3.71]
[1757234400450,7.42,204.0,203.91,9.06460273]
[1757234400645,7.42,204.0,203.92,9.06460273]
[1757234400848,7.42,203.99,203.9,3.71]
[1757234401048,7.42,203.99,203.91,9.06571551]
[1757234401248,7.42,203.99,203.92,4.38715676]
[1757234401448,7.42,203.99,203.9,19.21]
[1757234401651,7.42,203.99,203.91,9.06283601]
[1757234401948,7.42,203.99,203.9,33.93]
[1757234402147,7.42,203.99,203.9,52.11]
[1757234402346,5.5208273,204.0,203.9,52.11]
[1757234402548,7.42,203.99,203.9,52.11]
[1757234402744,7.42,203.97,203.9,52.11]
[1757234403654,7.42,203.97,203.9,3.71]
[1757234405247,5.5208273,203.97,203.88,3.71]
[1757234405553,7.42,203.96,203.88,3.71]
[1757234406454,7.42,203.96,203.88,2.38398202]
[1757234406654,7.42,203.96,203.89,3.71]
[1757234406953,5.5208273,203.99,203.89,3.71]
[1757234407156,12.9408273,203.99,203.92,3.71]
[1757234407853,7.42,203.99,203.92,3.71]
[1757234408651,7.42,203.99,203.91,3.71]
[1757234412751,12.9408273,203.99,203.91,3.71]
[1757234416252,12.9408273,203.99,203.87,4.4135]
[1757234416460,7.42,203.96,203.88,6.09398202]
[1757234418858,7.42,203.96,203.88,3.71]
[1757234419060,7.42,203.94,203.88,3.71]
[1757234419263,5.5208273,203.94,203.85,10.50798202]
[1757234419456,7.8,203.93,203.85,10.50798202]
[1757234421461,7.8,203.93,203.85,6.09398202]
[1757234423964,7.8,203.93,203.85,3.71]
[1757234424165,7.8,203.93,203.85,6.09398202]
[1757234424556,7.8,203.93,203.86,3.71]
[1757234427464,7.8,203.95,203.81,2.38398202]
[1757234427659,7.90480932,203.93,203.82,12.76366804]
[1757234427859,13.3208273,203.92,203.82,3.72]
[1757234428660,2.38398202,203.93,203.82,3.72]
[1757234428661,5.5208273,203.91,203.82,3.72]
[1757234428865,7.8,203.9,203.82,3.72]
[1757234432168,7.8,203.9,203.83,4.37003117]
[1757234432368,7.8,203.9,203.82,3.72]
[1757234432568,7.8,203.9,203.83,4.37136906]
[1757234432769,7.8,203.9,203.82,3.72]
[1757234432969,7.8,203.9,203.83,4.37136906]
[1757234433169,7.8,203.9,203.82,3.72]
[1757234433369,7.8,203.9,203.83,4.37109341]
[1757234433573,7.8,203.9,203.82,3.72]
[1757234433775,7.8,203.9,203.83,4.37255834]
[1757234433964,7.8,203.9,203.82,3.72]
[1757234434170,7.8,203.9,203.83,4.37256162]
[1757234434375,7.8,203.9,203.82,3.72]
[1757234434570,7.8,203.9,203.83,8.98959061]
[1757234434771,7.8,203.9,203.82,3.72]
[1757234435068,7.8,203.9,203.83,4.37360188]
[1757234435265,7.8,203.9,203.84,4.37452958]
[1757234435466,7.8,203.9,203.82,3.72]
[1757234435670,7.8,203.9,203.83,8.99104601]
[1757234435871,7.8,203.9,203.84,4.37452958]
[1757234436067,7.8,203.9,203.82,3.72]
[1757234436267,7.8,203.9,203.83,4.37406806]
[1757234436468,17.12398202,203.92,203.8,3.72]
[1757234436469,7.8,203.88,203.8,3.72]
[1757234436668,7.8,203.88,203.81,8.99243567]
[1757234436868,7.8,203.88,203.82,4.37520768]
[1757234437072,7.8,203.88,203.8,3.72]
[1757234437271,7.8,203.88,203.83,2.38398202]
[1757234437473,7.8,203.89,203.83,2.38398202]
[1757234437670,7.8,203.89,203.82,3.72]
[1757234437873,7.8,203.89,203.83,4.37979729]
[1757234438073,7.8,203.89,203.82,3.72]
[1757234438375,7.8,203.89,203.83,4.37934458]
[1757234438571,7.8,203.89,203.82,3.72]
[1757234438766,7.8,203.89,203.83,4.37912086]
[1757234438972,7.8,203.89,203.82,3.72]
[1757234439174,7.8,203.89,203.83,4.37912086]
[1757234439475,7.8,203.89,203.82,3.72]
[1757234439676,7.8,203.89,203.83,4.37851024]
[1757234439877,7.8,203.89,203.82,3.72]
[1757234440175,7.8,203.89,203.83,4.37851024]
[1757234440376,7.8,203.89,203.82,3.72]
[1757234440571,7.8,203.89,203.83,4.3779558]
[1757234440774,7.8,203.89,203.82,3.72]
[1757234440973,7.8,203.89,203.83,4.3779558]
[1757234441173,7.8,203.89,203.82,3.72]
[1757234441473,7.8,203.89,203.83,4.37758858]
[1757234441675,7.8,203.89,203.82,3.72]
[1757234441876,7.8,203.89,203.83,4.3775932]
[1757234442079,7.8,203.89,203.82,3.72]
[1757234443275,7.8,203.89,203.83,4.37657146]
[1757234443575,7.8,203.89,203.82,3.72]
[1757234443776,7.8,203.89,203.83,4.37654162]
[1757234444076,7.8,203.89,203.82,3.72]
[1757234444276,7.8,203.89,203.83,4.37658897]
[1757234444475,7.8,203.89,203.82,3.72]
[1757234444676,7.8,203.89,203.83,4.37667517]
[1757234444876,7.8,203.89,203.82,3.72]
[1757234445176,7.8,203.89,203.83,4.37667517]
[1757234445371,7.8,203.89,203.82,3.72]
[1757234445572,7.8,203.89,203.83,4.37674151]
[1757234445776,7.8,203.89,203.82,3.72]
[1757234447476,7.8,203.89,203.83,1.52540487]
[1757234452780,13.3208273,203.89,203.83,1.52540487]
[1757234457177,5.5208273,203.88,203.83,1.52540487]
[1757234457476,5.5208273,203.88,203.83,5.23540487]
[1757234457672,7.51,203.87,203.83,5.23540487]
[1757234457872,5.5208273,203.88,203.83,5.23540487]
[1757234458182,5.5208273,203.88,203.84,3.71]
[1757234458778,7.51,203.87,203.84,3.71]
[1757234459283,5.5208273,203.88,203.83,5.23540487]
[1757234459584,9.03540487,203.87,203.79,3.71]
[1757234459784,7.51,203.85,203.8,4.38382876]
[1757234459981,7.51,203.84,203.78,185.90701372]
[1757234460180,7.51,203.84,203.79,4.38556802]
[1757234460382,1.52540487,203.83,203.8,4.38556802]
[1757234460585,7.51,203.82,203.75,1.52540487]
[1757234460776,7.51,203.82,203.76,8.95614369]
[1757234460980,7.51,203.82,203.77,4.38820994]
[1757234461184,7.51,203.82,203.78,4.39025594]
[1757234461382,7.51,203.82,203.75,1.52540487]
[1757234461585,7.51,203.82,203.76,4.38864896]
[1757234461879,7.51,203.82,203.77,4.38864896]
[1757234462182,7.04623217,203.83,203.78,8.88443319]
[1757234462386,7.04623217,203.83,203.79,4.3881006]
[1757234462387,7.51,203.82,203.79,4.3881006]
[1757234462588,13.0308273,203.82,203.75,1.52540487]
[1757234462784,7.51,203.82,203.76,8.88513229]
[1757234463091,7.51,203.82,203.77,8.88513229]
[1757234463290,7.51,203.82,203.78,4.3884452]
[1757234463487,7.51,203.82,203.79,4.3884452]
[1757234463688,7.51,203.82,203.75,1.52540487]
[1757234463981,7.51,203.82,203.76,8.87950592]
[1757234464188,1.52540487,203.83,203.77,8.87950592]
[1757234464385,1.52540487,203.83,203.75,1.52540487]
[1757234464386,1.52540487,203.83,203.78,4.38566629]
[1757234464585,7.51,203.82,203.79,4.38566629]
[1757234464781,7.51,203.82,203.77,1.52540487]
[1757234464987,7.51,203.82,203.79,5.23540487]
[1757234465291,7.51,203.82,203.8,4.38461134]
[1757234465498,7.51,203.87,203.81,5.91001621]
[1757234465692,7.51,203.87,203.82,4.38461134]
[1757234465892,7.51,203.87,203.81,1.52540487]
[1757234466092,7.51,203.87,203.82,4.38261683]
[1757234466392,7.51,203.87,203.81,1.52540487]
[1757234466690,7.51,203.87,203.82,4.38279584]
[1757234466991,7.51,203.87,203.81,1.52540487]
[1757234467290,7.51,203.87,203.82,4.3825025]
[1757234467489,7.51,203.87,203.81,1.52540487]
[1757234467691,7.51,203.87,203.82,4.38261208]
[1757234467991,7.51,203.87,203.83,4.38261208]
[1757234468190,7.51,203.87,203.81,1.52540487]
[1757234468383,7.04623217,203.88,203.82,4.42731507]
[1757234468581,7.04623217,203.88,203.83,4.42731507]
[1757234468782,7.51,203.87,203.81,1.52540487]
[1757234468985,7.04623217,203.88,203.82,4.42731507]
[1757234469181,7.04623217,203.88,203.83,4.42731507]
[1757234469485,7.51,203.87,203.81,1.52540487]
[1757234469683,7.51,203.87,203.82,4.42777577]
[1757234469888,7.04623217,203.88,203.83,4.42777577]
[1757234470089,7.51,203.87,203.81,1.52540487]
[1757234470288,5.5208273,203.88,203.82,4.42834622]
[1757234470491,13.0308273,203.87,203.81,1.52540487]
[1757234470686,7.51,203.86,203.82,8.13834622]
[1757234470883,5.5208273,203.87,203.83,5.95336471]
[1757234471088,7.51,203.87,203.84,8.13817127]
[1757234471289,7.51,203.87,203.84,3.71]
[1757234471599,5.5208273,203.88,203.84,3.71]
[1757234471997,7.51,203.87,203.84,3.71]
[1757234472488,5.5208273,203.88,203.84,3.71]
[1757234472795,7.51,203.86,203.84,3.71]
[1757234472991,5.5208273,203.87,203.83,1.52540487]
[1757234473195,8.28012734,203.89,203.82,1.52540487]
[1757234473196,5.5208273,203.86,203.82,1.52540487]
[1757234473691,7.51,203.85,203.82,1.52540487]
[1757234473996,7.51,203.85,203.82,5.23540487]
[1757234476701,5.5208273,203.86,203.82,1.52540487]
[1757234476896,7.51,203.85,203.82,1.52540487]
[1757234477097,5.5208273,203.86,203.82,1.52540487]
[1757234478098,5.5208273,203.86,203.8,1.52540487]
[1757234478299,7.51,203.85,203.81,4.42957432]
[1757234478497,7.51,203.85,203.82,4.42957432]
[1757234478695,7.51,203.85,203.8,1.52540487]
[1757234478897,7.51,203.85,203.81,4.4295743]
[1757234479097,7.51,203.85,203.82,4.4295743]
[1757234479296,7.41,203.85,203.8,1.52540487]
[1757234479498,5.5208273,203.86,203.81,4.42962944]
[1757234479697,5.5208273,203.86,203.82,4.42962944]
[1757234479903,1.52540487,203.84,203.78,1.52540487]
[1757234480107,12.9308273,203.83,203.79,4.43000692]
[1757234480299,12.9308273,203.83,203.78,1.52540487]
[1757234480495,12.9308273,203.83,203.79,4.43102377]
[1757234480701,12.9308273,203.83,203.78,1.52540487]
[1757234480898,5.5208273,203.83,203.79,4.43101909]
[1757234481102,5.5208273,203.83,203.78,1.52540487]
[1757234481405,7.41,203.82,203.79,4.43066692]
[1757234481600,7.41,203.82,203.77,5.25540487]
[1757234481801,7.41,203.82,203.78,4.43066224]
[1757234482002,5.5208273,203.83,203.79,4.43066224]
[1757234482204,5.5208273,203.83,203.8,4.42981041]
[1757234482406,7.41,203.82,203.77,5.25540487]
[1757234482705,1.52540487,203.84,203.78,4.42981041]
[1757234482905,1.52540487,203.84,203.79,4.42981041]
[1757234483099,7.41,203.83,203.8,4.42981041]
[1757234483307,7.41,203.83,203.77,5.25540487]
[1757234483504,7.41,203.83,203.78,4.42950836]
[1757234483705,1.52540487,203.84,203.79,4.42950836]
[1757234483895,1.52540487,203.84,203.8,4.42950836]
[1757234484101,1.52540487,203.84,203.77,5.25540487]
[1757234484102,7.41,203.83,203.77,5.25540487]
[1757234484308,1.52540487,203.84,203.78,4.42985707]
[1757234484500,7.41,203.83,203.79,4.42985707]
[1757234484701,1.52540487,203.84,203.8,4.42985707]
[1757234484903,7.41,203.83,203.77,5.25540487]
[1757234485103,7.41,203.83,203.78,4.42985707]
[1757234485298,7.41,203.83,203.79,4.42985707]
[1757234485507,7.41,203.83,203.8,4.42985707]
[1757234485708,7.41,203.83,203.77,5.25540487]
[1757234485904,7.41,203.83,203.78,4.42963375]
[1757234486114,1.52540487,203.84,203.79,4.42963375]
[1757234486299,1.52540487,203.84,203.8,4.42963375]
[1757234486504,7.41,203.83,203.77,5.25540487]
[1757234486707,1.52540487,203.84,203.78,4.43022368]
[1757234486905,1.52540487,203.84,203.79,4.43022368]
[1757234487105,7.41,203.83,203.8,4.43022368]
[1757234487307,7.41,203.83,203.77,1.52540487]
[1757234487507,1.52540487,203.84,203.78,4.43007429]
[1757234487705,1.52540487,203.84,203.79,4.43007429]
[1757234487904,7.41,203.83,203.8,4.43007429]
[1757234488205,7.41,203.83,203.77,5.25540487]
[1757234488504,7.41,203.83,203.78,4.43017434]
[1757234488702,1.52540487,203.84,203.79,4.43017434]
[1757234488903,7.41,203.83,203.8,4.43017434]
[1757234489109,7.41,203.83,203.77,1.52540487]
[1757234489311,1.52540487,203.84,203.78,4.43032894]
[1757234489611,7.41,203.83,203.79,4.43032894]
[1757234489806,7.41,203.83,203.8,4.43032894]
[1757234490006,7.41,203.83,203.77,1.52540487]
[1757234490205,7.41,203.83,203.78,4.43055033]
[1757234490504,7.41,203.83,203.79,4.43055033]
[1757234490711,7.41,203.83,203.8,4.43055033]
[1757234490907,7.41,203.83,203.77,1.52540487]
[1757234491108,7.41,203.83,203.78,4.4307262]
[1757234491411,7.41,203.83,203.79,4.4307262]
[1757234491608,7.41,203.83,203.8,4.4307262]
[1757234491808,7.41,203.83,203.77,1.52540487]
[1757234492010,7.41,203.83,203.78,4.43084707]
[1757234492307,7.04623217,203.84,203.79,4.43084707]
[1757234492511,7.41,203.83,203.8,4.43084707]
[1757234492712,7.41,203.83,203.77,1.52540487]
[1757234493012,7.41,203.83,203.78,4.43094489]
[1757234493213,7.41,203.83,203.79,4.43094489]
[1757234493513,7.41,203.83,203.8,4.43094489]
[1757234493716,7.41,203.83,203.77,1.52540487]
[1757234493918,7.41,203.83,203.78,4.43108471]
[1757234494111,7.41,203.83,203.79,4.31267915]
[1757234494312,7.41,203.83,203.77,1.52540487]
[1757234494509,7.41,203.83,203.78,4.31267846]
[1757234494710,7.41,203.83,203.79,4.31267846]
[1757234494913,7.41,203.83,203.77,1.52540487]
[1757234495109,7.41,203.83,203.78,4.31267846]
[1757234495409,7.41,203.83,203.79,4.31267846]
[1757234495611,7.41,203.83,203.77,1.52540487]
[1757234495815,7.41,203.83,203.78,4.31272331]
[1757234496015,7.41,203.83,203.77,1.52540487]
[1757234496215,7.41,203.83,203.78,4.31272331]
[1757234496414,7.41,203.83,203.77,1.52540487]
[1757234496615,7.41,203.83,203.78,4.3131229]
[1757234496813,7.41,203.83,203.77,1.52540487]
[1757234497114,7.41,203.83,203.78,4.3131229]
[1757234497312,7.41,203.83,203.77,1.52540487]
[1757234497512,7.41,203.83,203.78,4.3134213]
[1757234497812,7.41,203.83,203.77,1.52540487]
[1757234498012,7.04623217,203.84,203.78,4.30999214]
[1757234498213,7.41,203.83,203.77,1.52540487]
[1757234498412,7.41,203.83,203.78,4.31035849]
[1757234498612,7.41,203.83,203.77,1.52540487]
[1757234498913,7.41,203.83,203.78,4.31035849]
[1757234499114,7.41,203.83,203.77,1.52540487]
[1757234499418,7.04623217,203.84,203.78,4.3106328]
[1757234499610,7.41,203.83,203.77,1.52540487]
[1757234499814,7.41,203.83,203.78,4.3106328]
[1757234500113,5.5208273,203.83,203.79,4.31093524]
[1757234500315,7.41,203.82,203.77,1.52540487]
[1757234500517,5.5208273,203.83,203.78,8.02093524]
[1757234500714,7.41,203.82,203.79,4.31093524]
[1757234501019,5.5208273,203.83,203.78,3.71]
[1757234501217,7.41,203.82,203.79,4.31151762]
[1757234501515,5.5208273,203.83,203.78,3.71]
[1757234501716,5.5208273,203.83,203.79,4.31154325]
[1757234502018,7.41,203.82,203.78,3.71]
[1757234502817,7.41,203.81,203.78,3.71]
[1757234503118,5.5208273,203.81,203.78,3.71]
[1757234503318,7.41,203.8,203.78,3.71]
[1757234504119,5.5208273,203.81,203.73,177.11006694]
[1757234504316,5.5208273,203.8,203.74,12.45753457]
[1757234504621,5.5208273,203.78,203.75,4.3144567]
[1757234504823,7.41,203.77,203.74,3.71]
[1757234505017,7.41,203.77,203.75,4.31617421]
[1757234505218,7.41,203.77,203.75,3.71]
[1757234506822,5.5208273,203.79,203.73,178.63547181]
[1757234507024,12.9308273,203.79,203.74,4.31494189]
[1757234507223,12.9308273,203.79,203.76,3.71]
[1757234509622,7.88,203.78,203.76,3.71]
[1757234510119,13.4008273,203.79,203.73,180.84006694]
[1757234510326,7.88,203.78,203.75,3.73]
[1757234511218,5.5208273,203.79,203.75,3.73]
[1757234511424,7.88,203.78,203.75,3.73]
[1757234511626,5.5208273,203.79,203.75,3.73]
[1757234512023,7.88,203.78,203.75,3.73]
[1757234512323,7.88,203.78,203.76,4.31133461]
[1757234512524,7.88,203.78,203.75,3.73]
[1757234512725,7.88,203.78,203.76,4.31151889]
[1757234513023,7.88,203.78,203.75,3.73]
[1757234513224,7.88,203.78,203.76,4.31125213]
[1757234513425,5.5208273,203.81,203.75,3.73]
[1757234513624,7.88,203.8,203.76,4.3112087]
[1757234513819,7.88,203.8,203.75,3.73]
[1757234514024,7.88,203.8,203.76,4.31102443]
[1757234514226,5.5208273,203.81,203.75,3.73]
[1757234514424,7.88,203.8,203.76,4.31084083]
[1757234514625,7.88,203.8,203.75,3.73]
[1757234514921,5.5208273,203.81,203.76,4.31084083]
[1757234515124,5.5208273,203.81,203.75,3.73]